[Event "FIDE WCCC Open-08 2024"]
[Site "Montesilvano"]
[Date "2024.11.18"]
[Round "2.18"]
[White "Tokmachov, Daniel"]
[Black "Meiyazhagan, Kaviinayan"]
[Result "0-1"]
[ECO "C54"]
[WhiteElo "1565"]
[BlackElo "1707"]
[PlyCount "100"]
[EventDate "2024.11.18"]
[EventType "swiss"]
[EventCountry "ITA"]
[TimeControl "5400+30"]

1. e4 {[%emt 0:00:08]} e5 {[%emt 0:00:09]} 2. Nf3 {[%emt 0:00:08]} Nc6 {[%emt 0:00:05]} 3. Bc4 {[%emt 0:00:13]} Bc5 {[%emt 0:00:05]} 4. c3 {[%emt 0:00:45]} Nf6 {[%emt 0:00:07]} 5. d3 {[%emt 0:01:16]} h6 {[%emt 0:00:44]} 6. Be3 {[%emt 1:31:00]} Bb6 {[%emt 0:01:16]} 7. h3 {[%emt 0:00:00]} O-O {[%emt 0:00:19]} 8. O-O {[%emt 0:00:00]} d5 {[%emt 0:03:37]} 9. exd5 {[%emt 0:00:00]} Nxd5 {[%emt 0:02:46]} 10. Bxd5 {[%emt 0:00:00]} Qxd5 {[%emt 0:00:00]} 11. d4 {[%emt 0:00:00]} exd4 {[%emt 0:02:33]} 12. Nxd4 {[%emt 0:00:00]} Nxd4 {[%emt 0:00:41]} 13. Bxd4 {[%emt 0:00:00]} Be6 {[%emt 0:00:58]} 14. Bxb6 {[%emt 0:00:00]} axb6 {[%emt 0:00:02]} 15. Qxd5 {[%emt 0:00:00]} Bxd5 {[%emt 1:24:38]} 16. a3 {[%emt 0:00:00]} Bc4 {[%emt 0:00:00]} 17. Rd1 {[%emt 0:00:00]} Rfd8 {[%emt 0:00:00]} 18. Rd4 {[%emt 0:00:00]} Rxd4 {[%emt 0:00:00]} 19. cxd4 {[%emt 0:00:00]} Rd8 {[%emt 0:00:00]} 20. Nd2 {[%emt 0:00:00]} Rxd4 {[%emt 0:00:00]} 21. Nxc4 {[%emt 0:00:00]} Rxc4 {[%emt 0:00:00]} 22. Kf1 {[%emt 0:00:00]} Rc2 {[%emt 0:00:00]} 23. Rb1 {[%emt 0:00:00]} Kf8 {[%emt 0:00:00]} 24. f3 {[%emt 0:00:00]} Ke7 {[%emt 0:00:00]} 25. Re1+ {[%emt 0:00:00]} Kd6 {[%emt 0:00:00]} 26. Re2 {[%emt 0:00:00]} Rxe2 {[%emt 0:00:00]} 27. Kxe2 {[%emt 0:00:00]} Kd5 {[%emt 0:00:00]} 28. Kd3 {[%emt 0:11:00]} f5 {[%emt 0:00:00]} 29. f4 {[%emt 0:00:00]} g5 {[%emt 0:00:00]} 30. fxg5 {[%emt 0:00:00]} hxg5 {[%emt 0:00:00]} 31. g3 {[%emt 0:00:00]} b5 {[%emt 0:00:00]} 32. h4 {[%emt 0:00:00]} f4 {[%emt 0:00:00]} 33. gxf4 {[%emt 0:00:00]} gxh4 {[%emt 0:00:00]} 34. Ke3 {[%emt 0:00:00]} h3 {[%emt 0:00:00]} 35. Kf3 {[%emt 0:00:00]} h2 {[%emt 0:00:00]} 36. Kg2 {[%emt 0:00:00]} Ke4 {[%emt 0:00:00]} 37. Kxh2 {[%emt 0:00:00]} Kxf4 {[%emt 0:00:00]} 38. Kg2 {[%emt 0:00:00]} Ke3 {[%emt 0:00:00]} 39. Kg3 {[%emt 0:00:00]} Kd2 {[%emt 0:00:00]} 40. Kf2 {[%emt 0:00:00]} Kc2 {[%emt 0:00:00]} 41. Ke2 {[%emt 0:00:00]} Kxb2 {[%emt 0:00:00]} 42. Kd2 {[%emt 0:00:00]} Kxa3 {[%emt 0:00:00]} 43. Kc2 {[%emt 0:00:00]} b4 {[%emt 0:00:00]} 44. Kb1 {[%emt 0:00:00]} Kb3 {[%emt 0:00:00]} 45. Ka1 {[%emt 0:00:00]} Kc2 {[%emt 0:00:00]} 46. Ka2 {[%emt 0:00:00]} b3+ {[%emt 0:00:00]} 47. Ka3 {[%emt 0:00:00]} b2 {[%emt 0:00:00]} 48. Ka4 {[%emt 0:00:00]} b1=Q {[%emt 0:00:00]} 49. Ka5 {[%emt 0:00:00]} Kc3 {[%emt 0:00:00]} 50. Ka4 {[%emt 0:00:00]} Qb4# {[%emt 0:00:00]} 0-1

[Event "FIDE WCCC Open-08 2024"]
[Site "Montesilvano"]
[Date "2024.11.18"]
[Round "2.19"]
[White "Mohamed Fouad, Yahia"]
[Black "Bakirli, Matin"]
[Result "1-0"]
[ECO "E18"]
[WhiteElo "1705"]
[BlackElo "1578"]
[PlyCount "131"]
[EventDate "2024.11.18"]
[EventType "swiss"]
[EventCountry "ITA"]
[TimeControl "5400+30"]

1. d4 {[%emt 0:00:08]} d5 {[%emt 0:00:07]} 2. Nf3 {[%emt 0:00:24]} Nf6 {[%emt 0:00:14]} 3. c4 {[%emt 0:00:38]} e6 {[%emt 0:00:04]} 4. Nc3 {[%emt 0:00:35]} Be7 {[%emt 0:00:21]} 5. g3 {[%emt 0:00:51]} O-O {[%emt 0:00:34]} 6. Bg2 {[%emt 0:00:32]} b6 {[%emt 0:01:29]} 7. O-O {[%emt 0:00:20]} Bb7 {[%emt 0:00:05]} 8. Ne5 {[%emt 0:00:26]} Nbd7 {[%emt 0:02:53]} 9. cxd5 {[%emt 0:01:55]} exd5 {[%emt 0:00:39]} 10. Qa4 {[%emt 0:04:10]} Nxe5 {[%emt 0:02:39]} 11. dxe5 {[%emt 0:00:52]} Nd7 {[%emt 0:05:41]} 12. Nxd5 {[%emt 0:01:15]} Nc5 {[%emt 0:01:31]} 13. Qd1 {[%emt 0:00:55]} c6 {[%emt 0:01:43]} 14. Nxe7+ {[%emt 0:02:13]} Qxe7 {[%emt 0:00:05]} 15. Qd6 {[%emt 0:04:07]} Qe6 {[%emt 0:10:25]} 16. Rd1 {[%emt 0:02:52]} Rfe8 {[%emt 0:02:48]} 17. Qxe6 {[%emt 0:02:28]} Rxe6 {[%emt 0:05:32]} 18. f4 {[%emt 0:04:00]} f6 {[%emt 0:03:22]} 19. exf6 {[%emt 0:01:45]} gxf6 {[%emt 0:04:17]} 20. Bf3 {[%emt 0:02:40]} Ba6 {[%emt 0:01:20]} 21. b4 {[%emt 0:09:34]} Na4 {[%emt 0:02:12]} 22. f5 {[%emt 0:01:06]} Re7 {[%emt 0:03:40]} 23. Bxc6 {[%emt 0:00:32]} Nc3 {[%emt 0:00:27]} 24. Bxa8 {[%emt 0:02:20]} Nxd1 {[%emt 0:00:04]} 25. b5 {[%emt 0:03:10]} Bxb5 {[%emt 0:00:35]} 26. Bd5+ {[%emt 0:02:49]} Kg7 {[%emt 0:00:52]} 27. Ba3 {[%emt 0:03:44]} Re3 {[%emt 0:02:36]} 28. Rxd1 {[%emt 0:01:20]} Rxa3 {[%emt 0:00:20]} 29. Bb3 {[%emt 0:02:32]} Ba4 {[%emt 0:48:25]} 30. Bxa4 {[%emt 0:03:40]} Rxa4 {[%emt 0:00:00]} 31. Rd2 {[%emt 0:00:27]} Ra3 {[%emt 0:00:00]} 32. Kf2 {[%emt 0:01:21]} Kf7 {[%emt 0:00:00]} 33. e4 {[%emt 0:06:53]} Kg7 {[%emt 0:00:00]} 34. h4 {[%emt 0:00:51]} Kf7 {[%emt 0:00:00]} 35. g4 {[%emt 0:02:11]} h6 {[%emt 0:00:00]} 36. g5 {[%emt 0:02:00]} hxg5 {[%emt 0:00:00]} 37. hxg5 {[%emt 0:31:24]} b5 {[%emt 0:00:00]} 38. g6+ {[%emt 0:00:00]} Kg7 {[%emt 0:00:00]} 39. Ke2 {[%emt 0:00:00]} Rg3 {[%emt 0:00:00]} 40. Kd1 {[%emt 0:00:00]} Re3 {[%emt 0:01:29]} 41. Rd7+ {[%emt 0:00:00]} Kg8 {[%emt 0:00:21]} 42. Rd4 {[%emt 0:00:00]} a5 {[%emt 0:01:51]} 43. Kc2 {[%emt 0:00:00]} b4 {[%emt 0:01:26]} 44. Rc4 {[%emt 0:00:00]} Kg7 {[%emt 0:01:21]} 45. Kd2 {[%emt 0:00:00]} Rg3 {[%emt 0:00:30]} 46. Rc2 {[%emt 0:00:00]} a4 {[%emt 0:00:57]} 47. Kc1 {[%emt 0:00:00]} Rg1+ {[%emt 0:00:28]} 48. Kd2 {[%emt 0:00:00]} Rg2+ {[%emt 0:00:08]} 49. Kd3 {[%emt 0:00:00]} Rg3+ {[%emt 0:00:35]} 50. Kc4 {[%emt 0:00:00]} Re3 {[%emt 0:00:14]} 51. Kd4 {[%emt 0:00:00]} Rf3 {[%emt 0:00:15]} 52. Kc4 {[%emt 0:00:00]} Re3 {[%emt 0:00:15]} 53. Kxb4 {[%emt 0:00:00]} Rxe4+ {[%emt 0:00:04]} 54. Rc4 {[%emt 0:00:00]} Re2 {[%emt 0:00:17]} 55. a3 {[%emt 0:00:00]} Rf2 {[%emt 0:00:14]} 56. Rc5 {[%emt 0:00:00]} Rf4+ {[%emt 0:00:09]} 57. Ka5 {[%emt 0:00:00]} Kg8 {[%emt 0:01:15]} 58. Kb5 {[%emt 0:00:00]} Kg7 {[%emt 0:01:11]} 59. Rd5 {[%emt 0:00:00]} Rg4 {[%emt 0:01:20]} 60. Rd7+ {[%emt 0:00:00]} Kg8 {[%emt 0:00:11]} 61. Rf7 {[%emt 0:00:00]} Rf4 {[%emt 0:00:11]} 62. Rxf6 {[%emt 0:00:00]} Kg7 {[%emt 0:00:12]} 63. Rf7+ {[%emt 0:00:00]} Kg8 {[%emt 0:00:04]} 64. f6 {[%emt 0:00:00]} Re4 {[%emt 0:00:07]} 65. Re7 {[%emt 0:00:00]} Rf4 {[%emt 0:00:32]} 66. Re8# {[%emt 0:00:00]} 1-0

[Event "FIDE WCCC Open-08 2024"]
[Site "Montesilvano"]
[Date "2024.11.18"]
[Round "2.20"]
[White "Xin, Andrew M."]
[Black "Sahin, Bora"]
[Result "0-1"]
[ECO "D04"]
[WhiteElo "1546"]
[BlackElo "1703"]
[PlyCount "68"]
[EventDate "2024.11.18"]
[EventType "swiss"]
[EventCountry "ITA"]
[TimeControl "5400+30"]

1. d4 {[%emt 0:00:02]} d5 {[%emt 0:00:05]} 2. Nf3 {[%emt 0:00:12]} Nf6 {[%emt 0:00:16]} 3. e3 {[%emt 0:00:22]} Bf5 {[%emt 0:00:08]} 4. Bd3 {[%emt 0:00:40]} Bxd3 {[%emt 0:00:16]} 5. cxd3 {[%emt 0:01:30]} e6 {[%emt 1:32:15]} 6. O-O {[%emt 1:30:44]} Bd6 {[%emt 0:00:00]} 7. Nc3 {[%emt 0:00:00]} O-O {[%emt 0:00:00]} 8. e4 {[%emt 0:00:00]} Be7 {[%emt 0:00:00]} 9. Qb3 {[%emt 0:00:00]} b6 {[%emt 0:00:00]} 10. Bf4 {[%emt 0:00:00]} c6 {[%emt 0:00:00]} 11. Rac1 {[%emt 0:00:00]} Qd7 {[%emt 0:00:00]} 12. Ne5 {[%emt 0:00:00]} Qb7 {[%emt 0:00:00]} 13. Rfe1 {[%emt 0:00:00]} Na6 {[%emt 0:00:00]} 14. Ne2 {[%emt 0:00:00]} Rac8 {[%emt 0:00:00]} 15. Nf3 {[%emt 0:00:00]} dxe4 {[%emt 0:00:00]} 16. dxe4 {[%emt 0:00:00]} Nxe4 {[%emt 0:00:00]} 17. Ng3 {[%emt 0:00:00]} Nf6 {[%emt 0:00:00]} 18. Be5 {[%emt 0:00:00]} c5 {[%emt 0:00:00]} 19. Red1 {[%emt 0:00:00]} cxd4 {[%emt 0:00:00]} 20. Rxc8 {[%emt 0:00:00]} Rxc8 {[%emt 0:00:00]} 21. Rxd4 {[%emt 0:00:00]} Nc5 {[%emt 0:00:00]} 22. Qd1 {[%emt 0:00:00]} Qc6 {[%emt 0:00:00]} 23. Rc4 {[%emt 0:00:00]} Rd8 {[%emt 0:00:00]} 24. Qc2 {[%emt 0:00:00]} a5 {[%emt 0:00:00]} 25. a3 {[%emt 0:00:00]} b5 {[%emt 0:00:00]} 26. Rc3 {[%emt 0:00:00]} Nd5 {[%emt 0:00:00]} 27. Rxc5 {[%emt 0:00:00]} Qxc5 {[%emt 0:00:00]} 28. Qxc5 {[%emt 0:00:00]} Bxc5 {[%emt 0:00:00]} 29. Ne4 {[%emt 0:00:00]} Nf6 {[%emt 0:00:00]} 30. h3 {[%emt 0:00:00]} Nxe4 {[%emt 0:00:00]} 31. Bg3 {[%emt 0:00:00]} Nxg3 {[%emt 0:00:00]} 32. Kh2 {[%emt 0:00:00]} Bxf2 {[%emt 0:00:00]} 33. Ne5 {[%emt 0:00:00]} Rd1 {[%emt 0:00:00]} 34. Nxf7 {[%emt 0:00:00]} Rh1# {[%emt 0:00:00]} 0-1

[Event "FIDE WCCC Open-08 2024"]
[Site "Montesilvano"]
[Date "2024.11.18"]
[Round "2.21"]
[White "Guo, Philipp Ziming"]
[Black "Bausys, Benas"]
[Result "0-1"]
[ECO "A57"]
[WhiteElo "2139"]
[BlackElo "1564"]
[PlyCount "107"]
[EventDate "2024.11.18"]
[EventType "swiss"]
[EventCountry "ITA"]
[TimeControl "5400+30"]

1. d4 {[%emt 0:00:02]} Nf6 {[%emt 0:00:10]} 2. c4 {[%emt 0:00:04]} c5 {[%emt 0:00:08]} 3. d5 {[%emt 0:00:09]} b5 {[%emt 0:00:07]} 4. e3 {[%emt 0:00:56]} Bb7 {[%emt 0:00:21]} 5. Nc3 {[%emt 0:00:36]} b4 {[%emt 0:00:17]} 6. Nb1 {[%emt 0:00:56]} g6 {[%emt 0:00:28]} 7. b3 {[%emt 0:00:08]} Bg7 {[%emt 0:00:08]} 8. Bb2 {[%emt 0:00:06]} d6 {[%emt 0:00:35]} 9. Nd2 {[%emt 0:00:07]} O-O {[%emt 0:01:33]} 10. Bd3 {[%emt 0:00:26]} Nbd7 {[%emt 0:00:26]} 11. Ngf3 {[%emt 0:00:26]} a5 {[%emt 0:14:15]} 12. a4 {[%emt 0:01:59]} Qc7 {[%emt 0:01:57]} 13. O-O {[%emt 0:02:18]} Rae8 {[%emt 0:02:21]} 14. Qc2 {[%emt 0:01:04]} e6 {[%emt 0:02:30]} 15. e4 {[%emt 0:01:08]} exd5 {[%emt 0:01:18]} 16. exd5 {[%emt 0:00:04]} Ng4 {[%emt 0:00:17]} 17. Rae1 {[%emt 0:01:51]} Nge5 {[%emt 0:02:15]} 18. Nxe5 {[%emt 0:00:30]} Nxe5 {[%emt 0:00:40]} 19. Bxe5 {[%emt 1:27:10]} Bxe5 {[%emt 0:02:04]} 20. f4 {[%emt 0:00:00]} Bd4+ {[%emt 0:00:42]} 21. Kh1 {[%emt 0:00:00]} f5 {[%emt 0:01:53]} 22. Nf3 {[%emt 0:00:00]} Bc3 {[%emt 0:00:50]} 23. Re2 {[%emt 0:00:00]} Rxe2 {[%emt 0:02:24]} 24. Qxe2 {[%emt 0:00:00]} Qd7 {[%emt 0:03:12]} 25. Ng5 {[%emt 0:00:00]} Re8 {[%emt 0:00:30]} 26. Ne6 {[%emt 0:00:00]} Bc8 {[%emt 0:03:34]} 27. g4 {[%emt 0:00:00]} Qf7 {[%emt 0:04:55]} 28. Qg2 {[%emt 0:00:00]} Kh8 {[%emt 0:04:20]} 29. Ng5 {[%emt 0:00:00]} Qg8 {[%emt 0:01:40]} 30. gxf5 {[%emt 0:05:30]} gxf5 {[%emt 0:03:10]} 31. Qh3 {[%emt 0:00:00]} Qg6 {[%emt 0:03:06]} 32. Rg1 {[%emt 0:00:00]} Bd4 {[%emt 0:00:33]} 33. Rg3 {[%emt 0:00:00]} Bf2 {[%emt 0:02:24]} 34. Rf3 {[%emt 0:00:00]} Re1+ {[%emt 0:03:53]} 35. Bf1 {[%emt 0:00:00]} Bd4 {[%emt 0:01:09]} 36. Rg3 {[%emt 0:00:00]} Re7 {[%emt 0:08:53]} 37. Qg2 {[%emt 0:00:00]} Qe8 {[%emt 0:03:10]} 38. Rh3 {[%emt 0:00:00]} Bf6 {[%emt 0:01:12]} 39. Rh6 {[%emt 0:00:00]} Bxg5 {[%emt 0:03:11]} 40. fxg5 {[%emt 0:00:00]} Qd7 {[%emt 0:02:31]} 41. Qb2+ {[%emt 0:00:00]} Rg7 {[%emt 0:02:56]} 42. Rf6 {[%emt 0:00:00]} Qe7 {[%emt 0:01:24]} 43. h4 {[%emt 0:00:00]} Qe4+ {[%emt 0:01:11]} 44. Kg1 {[%emt 0:00:00]} Qe3+ {[%emt 0:01:35]} 45. Qf2 {[%emt 0:00:00]} Rxg5+ {[%emt 0:00:30]} 46. Bg2 {[%emt 0:00:00]} Qxf2+ {[%emt 0:02:27]} 47. Kxf2 {[%emt 0:00:00]} Rg6 {[%emt 0:00:43]} 48. Rf8+ {[%emt 0:00:00]} Rg8 {[%emt 0:00:21]} 49. Rf7 {[%emt 0:00:00]} Rd8 {[%emt 0:01:46]} 50. Ra7 {[%emt 0:00:00]} f4 {[%emt 0:00:09]} 51. Be4 {[%emt 0:00:00]} Bd7 52. Kf3 {[%emt 0:00:00]} Kg8 {[%emt 0:01:00]} 53. Kxf4 {[%emt 0:00:00]} Kf8 {[%emt 0:00:30]} 54. Kg5 {[%emt 0:00:00]} 0-1

[Event "FIDE WCCC Open-08 2024"]
[Site "Montesilvano"]
[Date "2024.11.18"]
[Round "2.22"]
[White "Su, Milo"]
[Black "Morozevich, Kirill Aleks"]
[Result "0-1"]
[ECO "C22"]
[WhiteElo "1696"]
[BlackElo "1484"]
[PlyCount "70"]
[EventDate "2024.11.18"]
[EventType "swiss"]
[EventCountry "ITA"]
[TimeControl "5400+30"]

1. e4 {[%emt 0:00:02]} e5 {[%emt 0:00:08]} 2. d4 {[%emt 1:31:28]} exd4 {[%emt 0:00:11]} 3. Qxd4 {[%emt 0:00:00]} Nc6 {[%emt 0:00:05]} 4. Qd3 {[%emt 0:00:00]} d5 {[%emt 0:00:15]} 5. Qxd5 {[%emt 0:00:00]} Qxd5 {[%emt 0:00:08]} 6. exd5 {[%emt 0:00:00]} Nb4 {[%emt 0:00:04]} 7. Bb5+ {[%emt 0:00:00]} Bd7 {[%emt 0:00:07]} 8. Bxd7+ {[%emt 0:03:00]} Kxd7 {[%emt 0:00:07]} 9. Kd1 {[%emt 0:00:00]} Nxd5 {[%emt 0:00:19]} 10. Nf3 {[%emt 0:00:00]} Re8 {[%emt 0:00:35]} 11. a3 {[%emt 0:00:00]} Bc5 {[%emt 0:01:04]} 12. c4 {[%emt 0:00:00]} Nb6 {[%emt 0:00:27]} 13. b3 {[%emt 0:00:00]} Bxf2 {[%emt 0:01:52]} 14. Rf1 {[%emt 0:00:00]} Be3 {[%emt 0:00:11]} 15. Bxe3 {[%emt 0:00:00]} Rxe3 {[%emt 0:00:08]} 16. Ng5 {[%emt 0:00:00]} Nf6 {[%emt 0:00:17]} 17. Nxf7 {[%emt 0:00:00]} Rf8 {[%emt 0:01:18]} 18. Ng5 {[%emt 0:00:00]} Rxb3 {[%emt 0:01:29]} 19. Ne4 {[%emt 0:00:00]} Rd3+ {[%emt 0:00:15]} 20. Kc1 {[%emt 0:00:00]} Rd4 {[%emt 0:00:39]} 21. Nbd2 {[%emt 0:00:00]} Kc6 {[%emt 0:12:18]} 22. Ng5 {[%emt 0:00:00]} Re8 {[%emt 0:01:17]} 23. Ngf3 {[%emt 0:00:00]} Rg4 {[%emt 0:00:57]} 24. c5 {[%emt 0:00:00]} Kxc5 {[%emt 0:02:47]} 25. Nb3+ {[%emt 0:00:00]} Kd6 {[%emt 0:01:56]} 26. Nfd4 {[%emt 0:00:00]} Rxg2 {[%emt 0:01:58]} 27. Nf5+ {[%emt 0:00:00]} Kd7 {[%emt 0:00:12]} 28. Nbd4 {[%emt 0:00:00]} Re5 {[%emt 0:04:17]} 29. Rd1 {[%emt 0:00:00]} Rc5+ {[%emt 0:01:34]} 30. Kb1 {[%emt 0:00:00]} Nbd5 {[%emt 0:00:28]} 31. Nb3 {[%emt 0:00:00]} Rcc2 {[%emt 0:00:40]} 32. Ne3 {[%emt 0:00:00]} Rb2+ {[%emt 0:01:06]} 33. Kc1 {[%emt 0:00:00]} Rxh2 {[%emt 0:00:12]} 34. Rd3 {[%emt 0:00:00]} Rbf2 {[%emt 0:01:25]} 35. Rd1 {[%emt 0:00:00]} Kc8 {[%emt 1:07:14]} 0-1

[Event "FIDE WCCC Open-08 2024"]
[Site "Montesilvano"]
[Date "2024.11.18"]
[Round "2.23"]
[White "Rajabov, Abdurahmon"]
[Black "Morozov, Arkhip"]
[Result "0-1"]
[ECO "C42"]
[WhiteElo "1515"]
[BlackElo "1687"]
[PlyCount "86"]
[EventDate "2024.11.18"]
[EventType "swiss"]
[EventCountry "ITA"]
[TimeControl "5400+30"]

1. e4 {[%emt 0:00:46]} e5 {[%emt 0:00:16]} 2. Nf3 {[%emt 0:00:04]} Nf6 {[%emt 0:00:31]} 3. Nxe5 {[%emt 0:00:10]} d6 {[%emt 0:00:20]} 4. Nf3 {[%emt 0:00:10]} Nxe4 {[%emt 0:00:18]} 5. c3 {[%emt 0:00:06]} d5 {[%emt 0:00:18]} 6. d4 {[%emt 0:00:12]} Bd6 {[%emt 0:00:18]} 7. Be2 {[%emt 1:32:32]} O-O {[%emt 0:01:12]} 8. O-O {[%emt 0:00:00]} c6 {[%emt 0:03:19]} 9. Re1 {[%emt 0:00:00]} Bf5 {[%emt 0:02:07]} 10. Be3 {[%emt 0:00:00]} Nd7 {[%emt 0:00:35]} 11. Nbd2 {[%emt 0:00:00]} Qc7 {[%emt 0:01:14]} 12. h3 {[%emt 0:00:00]} h6 {[%emt 0:01:21]} 13. Nxe4 {[%emt 0:00:00]} Bxe4 {[%emt 0:06:42]} 14. c4 {[%emt 0:00:00]} dxc4 {[%emt 0:02:10]} 15. Nd2 {[%emt 0:00:00]} Bd5 {[%emt 0:01:23]} 16. Bxc4 {[%emt 0:00:00]} Nf6 {[%emt 0:00:44]} 17. Rc1 {[%emt 0:00:00]} Bxc4 {[%emt 0:00:41]} 18. Nxc4 {[%emt 0:00:00]} Bb4 {[%emt 0:04:05]} 19. Nd2 {[%emt 0:00:00]} Rad8 {[%emt 0:02:41]} 20. Qf3 {[%emt 0:00:00]} Qd6 {[%emt 0:02:23]} 21. Red1 {[%emt 0:00:00]} Qd5 {[%emt 0:02:39]} 22. a3 {[%emt 0:00:00]} Bd6 {[%emt 0:02:09]} 23. Qe2 {[%emt 0:00:00]} Rfe8 {[%emt 0:02:13]} 24. Qd3 {[%emt 0:00:00]} Bb8 {[%emt 0:07:11]} 25. Nf3 {[%emt 0:00:00]} Ne4 {[%emt 0:03:07]} 26. Nd2 {[%emt 0:00:00]} Nxd2 {[%emt 0:03:28]} 27. Qxd2 {[%emt 0:00:00]} Bd6 {[%emt 0:01:19]} 28. Re1 {[%emt 0:00:00]} Re6 {[%emt 0:01:03]} 29. Qc3 {[%emt 0:00:00]} Rg6 {[%emt 0:00:22]} 30. f3 {[%emt 0:00:00]} Qxf3 {[%emt 0:02:58]} 31. Qc2 {[%emt 0:00:00]} Qxh3 {[%emt 0:02:09]} 32. Qxg6 {[%emt 0:00:00]} Qh2+ {[%emt 0:00:11]} 33. Kf2 {[%emt 0:00:00]} fxg6 {[%emt 0:00:17]} 34. Ke2 {[%emt 0:00:00]} Qxg2+ {[%emt 0:00:27]} 35. Kd3 {[%emt 0:00:00]} Qd5 {[%emt 0:00:14]} 36. Rc3 {[%emt 0:00:00]} c5 {[%emt 0:00:56]} 37. Rc4 {[%emt 0:00:00]} b5 {[%emt 0:00:27]} 38. Rcc1 {[%emt 0:00:00]} cxd4 {[%emt 0:00:29]} 39. Bd2 {[%emt 0:00:00]} Qb3+ {[%emt 0:00:22]} 40. Ke2 {[%emt 0:00:00]} Re8+ {[%emt 0:00:30]} 41. Kf1 {[%emt 0:00:00]} Qh3+ {[%emt 0:00:28]} 42. Kg1 {[%emt 0:00:00]} Qh2+ {[%emt 0:00:06]} 43. Kf1 {[%emt 0:00:00]} Rf8+ {[%emt 0:00:28]} 0-1

[Event "FIDE WCCC Open-08 2024"]
[Site "Montesilvano"]
[Date "2024.11.18"]
[Round "2.24"]
[White "Mudriievskyi, Jan"]
[Black "Reclik, Jakub"]
[Result "1-0"]
[ECO "C45"]
[WhiteElo "1682"]
[BlackElo "1458"]
[PlyCount "65"]
[EventDate "2024.11.18"]
[EventType "swiss"]
[EventCountry "ITA"]
[TimeControl "5400+30"]

1. e4 {[%emt 0:00:01]} e5 {[%emt 0:00:08]} 2. Nf3 {[%emt 0:00:07]} Nc6 {[%emt 0:00:06]} 3. d4 {[%emt 0:00:11]} exd4 {[%emt 0:00:15]} 4. Nxd4 {[%emt 0:00:07]} Bc5 {[%emt 0:00:29]} 5. Nb3 {[%emt 0:00:17]} Bb6 {[%emt 0:00:26]} 6. Nc3 {[%emt 0:00:10]} h6 {[%emt 0:05:12]} 7. Qe2 {[%emt 0:01:05]} d6 {[%emt 0:07:39]} 8. Be3 {[%emt 0:01:28]} Be6 {[%emt 0:07:25]} 9. O-O-O {[%emt 0:02:39]} Qe7 {[%emt 0:08:05]} 10. f3 {[%emt 1:29:25]} Nf6 {[%emt 0:12:44]} 11. Kb1 {[%emt 0:00:00]} Bxe3 {[%emt 0:02:14]} 12. Qxe3 {[%emt 0:00:00]} O-O-O {[%emt 0:01:39]} 13. Bb5 {[%emt 0:00:00]} Kb8 {[%emt 0:10:04]} 14. Bxc6 {[%emt 0:00:00]} bxc6 {[%emt 0:00:21]} 15. Na5 {[%emt 0:00:00]} Bd7 {[%emt 0:00:42]} 16. Qd3 {[%emt 0:00:00]} Ka8 {[%emt 0:02:14]} 17. Qa6 {[%emt 0:00:00]} Rb8 {[%emt 0:00:14]} 18. Nxc6 {[%emt 0:00:00]} Bxc6 {[%emt 0:00:12]} 19. Qxc6+ {[%emt 0:00:00]} Rb7 {[%emt 0:00:05]} 20. Rd4 {[%emt 0:00:00]} Nd7 {[%emt 0:04:55]} 21. Nd5 {[%emt 0:00:00]} Qd8 {[%emt 0:01:45]} 22. Rb4 {[%emt 0:00:00]} Nb6 {[%emt 0:03:17]} 23. a4 {[%emt 0:00:00]} Qd7 {[%emt 0:04:52]} 24. Nxb6+ {[%emt 0:00:00]} axb6 {[%emt 0:01:12]} 25. Qxd7 {[%emt 0:00:00]} c5 {[%emt 0:00:30]} 26. Qxd6 {[%emt 0:00:00]} cxb4 {[%emt 0:00:07]} 27. Qxb4 {[%emt 0:00:00]} Rc8 {[%emt 0:00:40]} 28. Rd1 {[%emt 0:00:00]} Rcb8 {[%emt 0:00:41]} 29. Rd6 {[%emt 0:00:00]} Ka7 {[%emt 0:00:23]} 30. a5 {[%emt 0:00:00]} b5 {[%emt 0:00:24]} 31. Qc5+ {[%emt 0:00:00]} Ka8 {[%emt 0:00:45]} 32. Ra6+ {[%emt 0:00:00]} Ra7 {[%emt 0:00:54]} 33. Qxa7# {[%emt 0:00:00]} 1-0

[Event "FIDE WCCC Open-08 2024"]
[Site "Montesilvano"]
[Date "2024.11.18"]
[Round "2.25"]
[White "Smilga, Olivers"]
[Black "Petrenko, Tymofii"]
[Result "0-1"]
[ECO "B76"]
[WhiteElo "1439"]
[BlackElo "1678"]
[PlyCount "36"]
[EventDate "2024.11.18"]
[EventType "swiss"]
[EventCountry "ITA"]
[TimeControl "5400+30"]

1. e4 {[%emt 0:00:04]} c5 {[%emt 0:00:09]} 2. Nf3 {[%emt 0:00:08]} d6 {[%emt 0:00:09]} 3. d4 {[%emt 0:00:08]} cxd4 {[%emt 0:00:07]} 4. Nxd4 {[%emt 0:00:07]} Nf6 {[%emt 0:00:16]} 5. Nc3 {[%emt 0:00:08]} g6 {[%emt 0:00:10]} 6. Be3 {[%emt 0:00:06]} Bg7 {[%emt 0:00:12]} 7. f3 {[%emt 0:00:09]} O-O {[%emt 0:00:17]} 8. Qd2 {[%emt 0:00:32]} Nc6 {[%emt 0:00:10]} 9. O-O-O {[%emt 0:00:17]} d5 {[%emt 0:00:11]} 10. exd5 {[%emt 0:00:37]} Nxd5 {[%emt 0:00:36]} 11. Nxd5 {[%emt 0:04:31]} Qxd5 {[%emt 0:00:22]} 12. Nxc6 {[%emt 0:06:29]} Qxc6 {[%emt 0:01:09]} 13. Bd3 {[%emt 0:08:09]} Be6 {[%emt 0:01:56]} 14. a3 {[%emt 0:06:09]} Rfd8 {[%emt 0:04:46]} 15. Rhe1 {[%emt 0:08:53]} Rac8 {[%emt 0:02:15]} 16. Kb1 {[%emt 0:23:26]} Bc4 {[%emt 0:02:42]} 17. Qe2 {[%emt 0:02:15]} Qb5 {[%emt 0:03:57]} 18. b4 {[%emt 0:03:49]} Qe5 {[%emt 0:00:38]} 0-1

[Event "FIDE WCCC Open-08 2024"]
[Site "Montesilvano"]
[Date "2024.11.18"]
[Round "2.26"]
[White "Szumiec, Jan"]
[Black "Ameen Akbar T A"]
[Result "1-0"]
[ECO "B45"]
[WhiteElo "1678"]
[BlackElo "1579"]
[PlyCount "57"]
[EventDate "2024.11.18"]
[EventType "swiss"]
[EventCountry "ITA"]
[TimeControl "5400+30"]

1. e4 {[%emt 0:00:11]} c5 {[%emt 0:00:05]} 2. Nf3 {[%emt 0:00:10]} e6 {[%emt 0:00:08]} 3. d4 {[%emt 0:00:09]} cxd4 {[%emt 0:00:09]} 4. Nxd4 {[%emt 0:00:11]} Nf6 {[%emt 0:00:09]} 5. Nc3 {[%emt 0:00:15]} Nc6 {[%emt 0:04:45]} 6. Nxc6 {[%emt 0:02:19]} bxc6 {[%emt 0:00:06]} 7. e5 {[%emt 0:00:17]} Nd5 {[%emt 0:00:07]} 8. Ne4 {[%emt 0:00:10]} Qc7 {[%emt 0:00:08]} 9. f4 {[%emt 0:00:28]} Qb6 {[%emt 0:00:07]} 10. c4 {[%emt 0:00:20]} Bb4+ {[%emt 0:00:30]} 11. Ke2 {[%emt 0:02:34]} f5 {[%emt 0:02:57]} 12. exf6 {[%emt 0:04:19]} Nxf6 {[%emt 0:00:14]} 13. Be3 {[%emt 0:05:54]} Qc7 {[%emt 0:22:25]} 14. Nxf6+ {[%emt 0:04:59]} gxf6 {[%emt 0:00:25]} 15. Kf2 {[%emt 0:02:15]} d5 {[%emt 0:13:33]} 16. cxd5 {[%emt 0:04:10]} cxd5 {[%emt 0:00:21]} 17. Rc1 {[%emt 0:01:28]} Qg7 {[%emt 0:07:39]} 18. Qa4+ {[%emt 0:00:40]} Bd7 {[%emt 0:02:18]} 19. Qxb4 {[%emt 0:00:05]} Rf8 {[%emt 0:06:22]} 20. Be2 {[%emt 0:00:43]} e5 {[%emt 0:01:13]} 21. Bh5+ {[%emt 0:00:12]} Kd8 {[%emt 0:04:02]} 22. Qa5+ {[%emt 0:01:52]} Ke7 {[%emt 0:01:00]} 23. Bc5+ {[%emt 0:00:20]} Ke6 {[%emt 0:00:19]} 24. Qa6+ {[%emt 0:00:31]} Kf5 {[%emt 0:00:47]} 25. g4+ {[%emt 0:02:46]} Kxf4 {[%emt 0:00:26]} 26. Be3+ {[%emt 0:00:26]} Ke4 {[%emt 0:00:18]} 27. Rhe1 {[%emt 0:02:03]} d4 {[%emt 0:03:13]} 28. Qb7+ {[%emt 0:01:07]} Kd3 {[%emt 0:00:20]} 29. Red1# {[%emt 0:00:22]} 1-0